bitfinex-derivatives/quotes_ETHF0:USTF0_20250807
["timestamp","ask_amount","ask_price","bid_price","bid_amount"]
[1754561980621,3.423,3793.4,3793.0,1.3705]
[1754561980816,0.8401,3793.3,3793.1,0.52715]
[1754561981022,2.5829,3793.2,3793.1,0.52715]
[1754561981322,2.5829,3793.2,3793.1,0.8847]
[1754561981621,0.52711,3793.5,3793.1,3.636]
[1754561981815,1.0978,3793.6,3793.5,4.16311]
[1754561982021,21.093,3793.7,3793.6,3.27838]
[1754561982314,23.6759,3793.7,3793.6,2.7513]
[1754561982518,23.6759,3793.7,3793.6,3.636]
[1754561983122,3.2078,3793.8,3793.7,4.16308]
[1754561983323,5.7907,3794.2,3794.1,4.16302]
[1754561983519,5.7907,3794.2,3794.1,0.8847]
[1754561983717,3.2078,3794.2,3793.2,0.8847]
[1754561983920,4.6929,3793.8,3793.6,0.52708]
[1754561984225,0.52709,3793.6,3793.3,1.41183]
[1754561984419,3.2078,3793.8,3793.3,0.52712]
[1754561984420,3.423,3793.4,3793.3,0.52712]
[1754561984721,3.2078,3793.8,3793.0,2.2655]
[1754561984920,0.52714,3793.3,3793.2,0.52714]
[1754561985123,0.52713,3793.4,3793.3,0.52713]
[1754561985315,2.5829,3793.4,3793.3,2.78233]
[1754561985515,1.4851,3793.5,3793.4,1.41181]
[1754561985718,2.5829,3793.5,3793.4,1.41181]
[1754561985920,2.5829,3793.5,3793.4,4.16311]
[1754561986118,0.52712,3793.4,3793.2,0.52714]
[1754561986422,1.0978,3793.3,3793.2,0.8847]
[1754561986622,1.0978,3793.3,3793.2,1.41185]
[1754561986924,2.5829,3793.3,3793.2,2.78235]
[1754561987120,1.4851,3793.7,3793.6,2.78229]
[1754561987326,1.4851,3793.7,3793.6,4.16309]
[1754561987527,3.73487,3793.8,3793.6,4.16309]
[1754561987722,3.73487,3793.8,3793.7,0.8847]
[1754561988221,0.52713,3793.3,3793.2,3.27844]
[1754561988423,0.52713,3793.3,3793.2,2.7513]
[1754561988721,3.11003,3793.3,3793.2,2.2552]
[1754561988920,3.11003,3793.3,3793.2,0.8847]
[1754561989125,3.11006,3793.1,3793.0,0.8847]
[1754561989322,3.11006,3793.1,3793.0,3.636]
[1754561989827,0.52716,3793.1,3793.0,3.636]
[1754561990420,3.11286,3793.1,3793.0,3.636]
[1754561990625,3.11286,3793.1,3793.0,2.2552]
[1754561991224,3.11286,3793.1,3793.0,3.636]
[1754561991620,1.4851,3793.0,3792.9,1.83382931]
[1754561991826,4.6929,3793.0,3792.9,4.58512931]
[1754561992019,6.6336,3793.0,3792.9,1.83382931]
[1754561992219,6.6336,3793.0,3792.9,0.94912931]
[1754561993328,27.6666,3793.0,3792.9,0.94912931]
[1754561993827,27.6646,3793.0,3792.9,0.94912931]
[1754561994823,27.6646,3793.0,3791.9,2.2552]
[1754561995024,27.6646,3793.0,3792.0,0.8847]
[1754561995025,3.079,3792.1,3792.0,0.8847]
[1754561995426,0.52735,3791.8,3791.7,1.90816]
[1754561995630,0.52735,3791.8,3791.7,4.16336]
[1754561995828,3.73514,3791.9,3791.7,0.52736]
[1754561996024,3.73514,3791.9,3791.8,3.636]
[1754561996324,5.22024,3791.9,3791.8,3.636]
[1754561996519,6.28684,3791.9,3791.8,3.636]
[1754561996723,0.52738,3791.5,3791.4,2.7513]
[1754561997323,5.7595,3791.9,3791.1,1.31859]
[1754561997324,2.5517,3791.8,3791.1,1.31859]
[1754561997527,3.2078,3791.9,3791.6,0.8847]
[1754561997725,3.73513,3791.9,3791.8,2.2552]
[1754561997931,3.73513,3791.9,3791.8,3.636]
[1754561998428,1.298,3793.3,3792.2,0.52729]
[1754561998627,1.298,3793.3,3793.2,2.2552]
[1754561998931,0.52717,3793.1,3792.9,1.41188]
[1754561999134,2.7318,3793.1,3793.0,1.40356]
[1754561999432,0.52714,3793.3,3793.1,0.52715]
[1754561999623,3.25894,3793.3,3793.2,0.8764]
[1754561999825,3.25894,3793.3,3793.2,0.52715]
[1754562000023,1.43564,3793.3,3793.1,1.40355]
[1754562000222,3.6403,3793.2,3793.1,0.52715]
[1754562000428,1.43566,3793.1,3792.9,0.52718]
[1754562000628,3.25894,3793.3,3793.2,1.40355]
[1754562000821,3.25894,3793.3,3793.2,0.8764]
[1754562001136,23.7248,3793.3,3793.2,3.7008]
[1754562001434,24.6333,3793.3,3793.2,0.8764]
[1754562001632,24.6333,3793.3,3792.7,3.7008]
[1754562001835,0.52717,3793.1,3792.7,3.7008]
[1754562002026,0.52719,3793.0,3792.9,0.8764]
[1754562002225,1.43569,3793.0,3792.9,0.8764]
[1754562002434,0.9085,3793.0,3792.9,0.8764]
[1754562002632,3.6403,3793.0,3792.9,0.8764]
[1754562002831,2.7318,3793.0,3792.9,2.3728]
[1754562003133,2.7318,3793.0,3792.9,3.7008]
[1754562003329,3.6403,3793.0,3792.9,0.8764]
[1754562003732,3.25907,3792.4,3792.1,0.52729]
[1754562003924,21.50524,3792.6,3792.3,0.52727]
[1754562004125,1.3105,3792.5,3792.4,1.40365]
[1754562004324,20.975,3792.6,3792.2,0.52728]
[1754562004532,0.5273,3792.2,3792.0,0.5273]
[1754562004834,0.5273,3792.2,3792.0,0.8764]
[1754562004835,2.7318,3792.1,3792.0,0.8764]
[1754562005028,0.52734,3791.9,3791.7,0.52735]
[1754562005229,2.7318,3791.8,3791.7,0.8764]
[1754562005724,3.6403,3791.8,3791.7,0.8764]
[1754562006129,3.2078,3792.3,3792.2,0.52729]
[1754562006435,3.73508,3792.3,3792.2,3.7008]
[1754562006634,3.25911,3792.0,3791.9,0.8764]
[1754562007032,2.7318,3791.6,3791.5,0.8764]
[1754562007236,20.96,3792.1,3791.2,2.7227]
[1754562007237,0.52741,3791.4,3791.2,2.7227]
[1754562007433,3.6403,3791.3,3791.2,2.7227]
[1754562008340,20.953,3791.4,3791.3,4.22821]
[1754562008629,24.5933,3791.4,3791.3,0.8764]
[1754562008831,3.25921,3791.3,3791.2,1.8463]
[1754562009036,4.16771,3791.3,3791.2,1.8463]
[1754562009233,3.6403,3791.3,3790.6,5.4122]
[1754562009426,2.7318,3790.7,3790.6,5.4122]
[1754562010033,1.4213,3790.5,3790.4,2.1105]
[1754562010227,0.52751,3790.6,3790.5,2.8244]
[1754562010428,3.25931,3790.6,3790.5,0.8764]
[1754562010635,4.16781,3790.6,3790.5,0.8764]
[1754562010832,3.6403,3790.5,3790.4,2.1105]
[1754562011235,3.2078,3790.6,3790.5,3.7008]
[1754562011436,20.94,3790.6,3790.5,3.7008]
[1754562012429,20.94,3790.6,3790.5,2.2044]
[1754562012636,1.3105,3790.7,3790.6,3.7008]
[1754562012932,22.2415,3790.7,3790.6,0.8764]
[1754562013131,0.5275,3790.7,3790.5,4.22832]
[1754562013435,6.46709,3790.8,3790.7,3.7008]
[1754562013636,5.9396,3790.8,3790.7,3.7008]
[1754562013839,25.57079,3790.8,3790.5,0.52752]
[1754562014033,2.7318,3790.6,3790.5,0.8764]
[1754562014239,24.1348,3790.8,3790.4,2.1105]
[1754562014240,4.16782,3790.5,3790.4,2.1105]
[1754562014931,25.08982,3790.5,3790.4,2.1105]
[1754562016037,25.08282,3790.5,3790.4,2.1105]
[1754562016435,25.08082,3790.5,3790.4,2.1105]
[1754562016839,3.2078,3790.8,3790.7,4.2283]
[1754562017040,1.4213,3791.4,3791.2,0.52743]
[1754562017343,4.6291,3791.6,3791.5,2.3728]
[1754562017534,3.2078,3792.0,3791.9,2.02373]
[1754562017738,24.1178,3792.0,3791.9,4.22813]
[1754562017932,27.7581,3792.0,3791.5,2.02378]
[1754562018132,0.52737,3791.7,3791.5,2.3728]
[1754562018340,3.73518,3791.6,3791.3,0.5274]
[1754562018541,24.5453,3791.5,3791.4,0.8764]
[1754562018832,0.52743,3791.2,3790.8,0.52747]
[1754562019036,0.52748,3790.8,3790.5,3.2078]
[1754562019236,0.52748,3790.8,3790.4,2.1105]
[1754562019237,1.83801,3790.6,3790.4,3.51442]
[1754562019446,20.9,3791.0,3790.5,0.8764]
[1754562019737,21.42548,3790.9,3790.8,3.7008]
[1754562019939,0.52752,3790.6,3790.4,4.9349]
[1754562020135,1.3105,3790.5,3790.4,2.1105]
[1754562020337,1.83802,3790.6,3790.5,2.3728]
[1754562020535,3.7353,3790.7,3790.5,3.7008]
[1754562020745,3.7353,3790.7,3790.4,2.63804]
[1754562020945,3.7353,3790.7,3790.4,5.8113]
[1754562020946,0.52752,3790.5,3790.4,5.8113]
[1754562021149,3.2078,3790.7,3790.5,0.52752]
[1754562021444,3.7353,3790.7,3790.6,3.7008]
[1754562021640,0.52752,3790.5,3790.4,2.1105]
[1754562021941,0.52752,3790.5,3790.4,2.9869]
[1754562022146,4.16782,3790.5,3790.4,2.1105]
[1754562022344,4.16782,3790.5,3789.9,0.94988061]
[1754562022345,3.25939,3790.0,3789.9,0.94988061]
[1754562022543,0.52759,3790.0,3789.9,4.65068061]
[1754562022740,0.52759,3790.1,3789.9,4.65068061]
[1754562022941,0.52759,3790.0,3789.9,0.94988061]
[1754562023140,0.52759,3790.0,3789.9,4.65068061]
[1754562023447,3.2078,3790.3,3790.0,3.7008]
[1754562023448,0.52759,3790.1,3790.0,3.7008]
[1754562024444,0.52751,3790.7,3790.4,1.328]
[1754562024746,0.52755,3790.3,3790.1,2.3728]
[1754562024936,20.871,3790.4,3790.3,0.8764]
[1754562025142,20.871,3790.4,3790.3,2.2044]
[1754562025343,0.52755,3790.3,3789.9,3.77428061]
[1754562025545,3.25938,3790.2,3790.0,3.7008]
[1754562025744,0.52759,3790.0,3789.9,0.94988061]
[1754562025945,3.25939,3790.0,3789.9,0.94988061]
[1754562026243,0.52768,3789.4,3788.8,3.2078]
[1754562026446,20.867,3789.5,3789.0,2.8244]
[1754562026744,0.52769,3789.3,3789.2,1.4964]
[1754562026951,0.52769,3789.3,3789.2,3.7008]
[1754562027545,3.25949,3789.3,3789.2,2.3728]
[1754562027745,20.858,3789.4,3789.3,3.7008]
[1754562028050,1.4213,3790.5,3789.5,1.4964]
[1754562028249,20.855,3790.4,3789.7,3.7008]
[1754562028447,20.855,3790.4,3790.0,1.4964]
[1754562028647,20.853,3790.5,3790.2,2.2044]
[1754562028948,4.52653,3790.8,3790.2,0.52755]
[1754562028949,20.855,3790.4,3790.2,0.52755]
[1754562029151,0.52759,3790.0,3789.9,3.7698]
[1754562029348,29.01118,3790.4,3789.3,3.7698]
[1754562029349,1.3189,3790.3,3789.3,3.7698]
[1754562029545,2.7182,3790.2,3789.5,0.52765]
[1754562029746,0.52765,3789.7,3789.5,3.7698]
[1754562029947,0.52762,3789.8,3789.4,1.44138]
[1754562030253,0.52765,3789.6,3789.5,3.7698]
[1754562030457,0.52763,3789.8,3789.6,4.29745]
[1754562030753,3.73541,3790.0,3789.9,3.7698]
[1754562030951,6.45361,3790.0,3789.9,3.7698]
[1754562031151,3.2078,3790.0,3789.7,3.7698]
[1754562031354,3.2078,3790.0,3789.2,6.9776]
[1754562031355,0.52769,3789.3,3789.2,6.9776]
[1754562031557,3.24589,3789.3,3789.2,4.1215]
[1754562032048,3.24589,3789.3,3789.2,5.647]
[1754562032256,0.52769,3789.3,3789.2,6.9776]
[1754562032449,0.52768,3789.4,3789.2,3.2078]
[1754562032650,0.52767,3789.5,3789.4,3.7698]
[1754562033252,3.24587,3789.5,3789.4,0.9137]
[1754562033455,0.5277,3789.3,3789.2,3.7698]
[1754562034054,0.52772,3789.1,3788.8,5.06616]
[1754562034254,0.52771,3789.2,3788.9,0.52774]
[1754562034457,0.52771,3789.2,3788.8,3.2078]
[1754562034458,0.52771,3789.2,3789.1,3.7698]
[1754562034753,0.52772,3789.2,3789.1,3.7698]
[1754562035352,0.52769,3789.4,3789.1,3.38382]
[1754562035552,0.52769,3789.4,3789.3,3.7698]
[1754562036958,3.24589,3789.4,3789.3,3.7698]
[1754562037153,1.3779,3789.3,3789.2,1.4414]
[1754562037356,3.2078,3789.5,3789.1,0.52771]
[1754562037658,2.7182,3789.3,3789.2,3.7698]
[1754562037857,3.2078,3789.5,3789.2,2.8561]
[1754562038050,5.926,3790.3,3789.7,3.7698]
[1754562038256,0.9113,3790.1,3789.8,3.7698]
[1754562038456,2.7182,3789.9,3789.8,3.7698]
[1754562038653,0.66134592,3790.2,3790.1,2.4392]
[1754562038856,20.805,3790.2,3790.1,3.7698]
[1754562039058,23.5232,3790.2,3790.1,3.7698]
[1754562039353,23.5232,3790.2,3790.1,2.4392]
[1754562039554,2.7182,3790.0,3789.9,0.5276]
[1754562039756,1.3779,3790.0,3789.9,3.3837]
[1754562039962,20.805,3790.2,3790.1,1.3306]
[1754562040156,1.3403,3790.1,3789.2,1.5255]
[1754562040459,0.52766,3789.6,3789.2,4.2975]
[1754562040662,2.7182,3789.4,3789.3,2.8561]
[1754562040862,0.5277,3789.3,3789.1,6.0639]
[1754562041058,2.7182,3789.2,3789.1,6.0639]
[1754562041256,2.7182,3789.2,3789.1,6.9776]
[1754562041458,3.6295,3789.2,3789.1,4.1215]
[1754562041653,0.9113,3789.7,3789.4,0.52767]
[1754562041856,0.52765,3789.7,3789.6,2.8561]
[1754562042461,3.24583,3789.8,3789.6,2.8561]
[1754562042661,3.24583,3789.8,3789.7,0.9137]
[1754562043263,3.24583,3789.8,3789.7,3.7698]
[1754562043561,20.781,3789.8,3789.5,2.4392]
[1754562043758,3.2078,3790.8,3790.1,0.9137]
[1754562043951,3.2078,3790.8,3790.5,0.52753]
[1754562044261,5.926,3790.8,3790.7,3.7698]
[1754562044563,28.27525097,3790.8,3790.7,2.4392]
[1754562044763,27.6123,3790.8,3790.7,0.9137]
[1754562044961,27.6113,3790.8,3790.7,0.9137]
[1754562045156,1.3403,3790.6,3790.2,2.2443]
[1754562045369,2.7182,3790.6,3790.5,0.9137]
[1754562045668,0.52751,3790.7,3790.6,3.7698]
[1754562046068,0.52758,3790.2,3790.0,3.2078]
[1754562046262,2.7182,3789.8,3789.7,1.85824]
[1754562046462,1.3779,3790.1,3790.0,0.52759]
[1754562046664,1.3779,3790.1,3790.0,4.29739]
[1754562046868,1.3779,3790.1,3790.0,3.7698]
[1754562047062,23.4862,3790.2,3790.1,4.29738]
[1754562047257,3.2078,3790.4,3789.6,3.2078]
[1754562047258,3.73534,3790.4,3790.2,4.29736]
[1754562047457,3.6295,3790.2,3790.1,0.52758]
[1754562048062,2.7182,3790.2,3790.1,1.44128]
[1754562048266,0.52758,3790.1,3789.9,2.0531]
[1754562048569,0.52758,3790.2,3790.0,0.5276]
[1754562048771,0.52758,3790.2,3790.1,3.7698]
[1754562049162,1.86788,3790.2,3790.1,3.7698]
[1754562049363,3.2078,3790.4,3790.1,3.7698]
[1754562049559,20.751,3790.8,3790.5,0.52752]
[1754562049769,1.3403,3790.7,3790.6,3.7698]
[1754562049965,0.66264121,3790.7,3790.6,3.7698]
[1754562050163,3.2457,3790.7,3790.6,3.7698]
[1754562050364,3.2457,3790.7,3790.6,2.4392]
[1754562050560,1.19023487,3790.7,3790.6,0.9137]
[1754562050767,2.7182,3790.7,3790.4,2.4392]
[1754562050966,1.3186,3791.2,3790.0,3.2078]
[1754562050967,0.5276,3790.1,3790.0,2.2443]
[1754562051165,3.73528,3790.9,3790.7,3.7698]
[1754562051367,3.73528,3790.9,3790.8,3.7698]
[1754562051368,3.2078,3790.9,3790.8,3.7698]
[1754562051566,0.66265065,3791.3,3791.2,4.29723]
[1754562051868,0.66265971,3792.0,3791.9,0.52733]
[1754562052172,1.3608337,3792.6,3792.3,0.52727]
[1754562052370,3.2078,3792.9,3792.6,3.7698]
[1754562052577,3.2078,3792.9,3792.8,3.7698]
[1754562053163,21.731,3793.0,3792.9,3.7698]
[1754562053376,1.3779,3792.9,3792.3,1.3306]
[1754562053562,3.24549,3792.2,3791.9,1.3306]
[1754562053873,0.5273,3792.2,3791.8,0.9137]
[1754562054069,3.2078,3792.6,3792.4,3.7698]
[1754562054375,3.24545,3792.5,3792.4,0.9137]
[1754562054576,0.52731,3792.1,3792.0,3.7698]
[1754562054776,3.24551,3792.1,3792.0,0.9137]
[1754562055069,3.24551,3792.1,3791.6,6.0639]
[1754562055070,2.7182,3792.1,3791.6,3.2078]
[1754562055369,2.7182,3792.1,3790.8,3.2078]
[1754562055370,1.31848,3791.5,3790.8,3.2078]
[1754562055568,1.31848,3791.5,3789.8,2.4392]
[1754562055569,1.08159,3790.9,3790.4,0.52754]
[1754562055770,3.2078,3790.6,3790.5,2.2443]
[1754562055966,1.3779,3790.3,3790.2,0.9137]
[1754562056171,4.5857,3790.6,3790.4,2.2443]
[1754562056376,4.5857,3790.6,3789.6,3.2078]
[1754562056377,0.52756,3790.3,3789.8,0.52762]
[1754562056564,3.2078,3790.6,3790.3,2.2443]
[1754562056766,0.52756,3790.3,3790.1,0.9137]
[1754562056971,0.52757,3790.2,3790.1,0.9137]
[1754562057270,3.73532,3790.6,3790.2,0.52756]
[1754562057469,3.73532,3790.6,3790.5,3.7698]
[1754562058071,3.2078,3790.6,3790.5,3.7698]
[1754562058273,3.73531,3790.6,3790.5,3.7698]
[1754562058579,2.45958,3790.2,3790.0,2.2443]
[1754562058770,1.932,3790.2,3790.0,2.2443]
[1754562058971,1.932,3790.2,3790.0,1.3306]
[1754562059171,0.52756,3790.3,3790.1,2.273]
[1754562059366,0.52759,3790.1,3789.6,3.73545]
[1754562059574,0.52759,3790.1,3790.0,3.6836]
[1754562059972,2.53699,3790.1,3790.0,0.9054]
[1754562060481,0.52764,3789.7,3789.6,3.6836]
[1754562060673,0.52769,3789.4,3789.1,3.2078]
[1754562060975,0.52769,3789.4,3789.3,3.6836]
[1754562061276,3.73548,3789.5,3789.3,3.6836]
[1754562061484,0.52773,3789.1,3788.8,3.6836]
[1754562061677,0.52771,3789.2,3788.9,0.52774]
[1754562061983,3.2078,3789.5,3789.4,3.6836]
[1754562062576,4.6635,3789.5,3789.4,2.273]
[1754562062776,5.2178,3789.5,3789.4,0.9054]
[1754562062980,0.52772,3789.1,3789.0,1.3676]
[1754562063179,1.98342,3789.1,3789.0,1.3676]
[1754562064175,0.52776,3788.9,3788.7,4.1132]
[1754562064476,0.52775,3789.0,3788.8,2.273]
[1754562064682,1.98345,3789.0,3788.8,2.273]
[1754562064981,1.4557,3788.9,3788.8,2.273]
[1754562065178,2.01,3788.9,3788.8,2.273]
[1754562065382,2.01,3788.9,3788.0,4.52749]
[1754562065383,0.5278,3788.6,3788.5,2.273]
[1754562065580,2.5378,3788.6,3788.5,0.9054]
[1754562065778,0.8876,3788.9,3788.0,3.2078]
[1754562065779,1.4557,3788.9,3788.0,4.52747]
[1754562066082,3.2078,3789.0,3788.5,3.6836]
[1754562066282,0.52778,3788.7,3788.6,3.6836]
[1754562066486,0.52778,3788.7,3788.6,2.273]
[1754562066678,2.53776,3788.9,3788.7,2.7782]
[1754562066873,2.53776,3788.9,3788.8,0.9054]
[1754562067079,3.2078,3789.0,3788.9,3.6836]
[1754562067278,1.4557,3789.3,3789.1,2.7782]
[1754562067487,3.7621,3789.4,3789.2,3.6836]
[1754562067778,3.7621,3789.4,3788.9,2.273]
[1754562067779,1.4557,3789.1,3788.9,2.273]
[1754562067983,4.21685,3789.3,3788.5,0.5278]
[1754562068185,4.21685,3789.3,3788.7,0.52777]
[1754562068186,1.4557,3789.2,3788.7,0.52777]
[1754562068388,2.01,3789.0,3788.8,2.80075]
[1754562068583,1.4557,3789.0,3788.9,3.6836]
[1754562068886,2.01,3789.3,3789.1,3.6836]
[1754562069182,3.2078,3789.4,3789.3,3.6836]
[1754562069978,2.5377,3789.3,3789.1,0.9054]
[1754562070178,1.9834,3789.3,3789.2,2.316]
[1754562070376,1.9834,3789.3,3788.7,2.273]
[1754562070377,2.53777,3788.8,3788.7,2.273]
[1754562070576,2.53777,3788.8,3788.5,0.52781]
[1754562070577,2.01,3788.7,3788.6,2.273]
[1754562070781,0.52775,3789.0,3788.9,2.273]
[1754562070982,5.19125,3789.0,3788.9,2.273]
[1754562071182,0.52778,3788.8,3788.6,1.4106]
[1754562071385,5.2178,3789.0,3788.1,1.4106]
[1754562071593,2.1727,3788.1,3786.9,1.4786631]
[1754562071784,3.2078,3787.0,3786.9,0.9506331]
[1754562072088,3.2078,3787.0,3786.9,4.6342331]
[1754562072490,5.90852,3787.0,3786.9,0.9506331]
[1754562073404,4.62342,3787.0,3786.9,0.9506331]
[1754562073690,5.90852,3787.0,3786.9,0.9506331]
[1754562074082,5.3805,3787.0,3786.9,0.9506331]
[1754562074392,3.2078,3787.0,3786.9,0.9506331]
[1754562074687,5.3805,3787.0,3786.9,0.9506331]
[1754562075790,26.0255,3787.0,3786.9,0.9506331]
[1754562076286,5.3805,3787.0,3786.9,0.9506331]
[1754562076490,26.0235,3787.0,3786.9,0.9506331]
[1754562076686,26.0215,3787.0,3786.9,0.9506331]
[1754562076888,5.3805,3787.0,3786.9,0.9506331]
[1754562077291,26.0205,3787.0,3786.9,0.9506331]
[1754562077486,26.0185,3787.0,3786.9,0.9506331]
[1754562077682,3.2078,3787.0,3786.9,4.6342331]
[1754562077888,1.8346,3787.0,3786.9,4.6342331]
[1754562078692,3.2078,3787.5,3787.4,4.21156]
[1754562079394,4.5129,3787.5,3787.4,2.316]
[1754562079597,3.2078,3787.5,3787.4,4.21156]
[1754562079793,3.2078,3787.5,3787.4,3.6836]
[1754562079992,5.04085,3787.5,3787.4,2.316]
[1754562080192,0.52798,3787.3,3787.1,0.9054]
[1754562080392,1.3051,3787.2,3787.1,1.4334]
[1754562080594,1.3051,3787.2,3787.1,2.316]
[1754562080794,1.83309,3787.2,3787.1,2.316]
[1754562081086,1.3051,3787.3,3786.9,0.9506331]
[1754562081293,2.5902,3787.0,3786.9,0.9506331]
[1754562081596,3.4778,3787.0,3786.9,0.9506331]
[1754562081900,3.2078,3787.1,3787.0,3.6836]
[1754562082199,4.00582,3787.0,3786.9,0.9506331]
[1754562082898,1.3051,3787.0,3786.9,3.2666331]
[1754562083291,3.4778,3787.0,3786.9,0.9506331]
[1754562083487,2.5902,3787.0,3786.9,0.9506331]
[1754562083688,3.2078,3787.1,3787.0,3.6836]
[1754562083892,20.618,3787.4,3787.1,3.6836]
[1754562084094,20.618,3787.4,3787.2,3.6836]
[1754562084095,0.52798,3787.3,3787.2,3.6836]
[1754562084300,1.83307,3787.4,3787.3,2.316]
[1754562084500,23.8248,3787.5,3787.3,2.316]
[1754562084501,3.73575,3787.5,3787.3,3.6836]
[1754562084799,3.73575,3787.5,3787.4,2.316]
[1754562084996,3.2078,3787.5,3787.4,3.6836]
[1754562085495,4.5129,3787.5,3786.9,2.3182331]
[1754562085793,3.4778,3787.0,3786.9,0.9506331]
[1754562086000,3.7358,3787.1,3786.9,0.9506331]
[1754562086001,3.2078,3787.1,3786.9,0.9506331]
[1754562086296,3.2078,3787.1,3787.0,3.6836]
[1754562086493,1.3051,3787.4,3787.3,0.52797]
[1754562086697,21.9141,3787.4,3787.3,2.84397]
[1754562086898,3.2078,3787.5,3787.4,3.6836]
[1754562087095,5.04085,3787.5,3787.4,2.316]
[1754562087296,4.5129,3787.5,3787.4,2.316]
[1754562087498,0.52796,3787.4,3787.0,1.89561]
[1754562087697,1.81306,3787.4,3787.1,2.316]
[1754562087899,23.8118,3787.5,3787.4,3.6836]
[1754562088088,3.2078,3787.5,3787.3,2.273]
[1754562088293,3.2078,3787.5,3787.4,4.21156]
[1754562088795,3.2078,3787.5,3787.4,3.6836]
[1754562088992,4.5189,3787.5,3787.4,2.316]
[1754562089299,23.8098,3787.5,3787.4,3.5644]
[1754562089502,25.1209,3787.5,3787.4,2.316]
[1754562089693,25.1209,3787.5,3787.4,3.5644]
[1754562089895,23.8098,3787.5,3787.4,3.5644]
[1754562090399,20.602,3787.5,3787.4,3.5644]
[1754562090794,3.73573,3787.7,3787.5,2.1185]
[1754562090998,20.599,3787.6,3787.5,3.6173]
[1754562091195,3.2078,3787.7,3787.6,4.14523]
[1754562091502,23.7998,3787.7,3787.6,3.6173]
[1754562091887,3.2078,3787.7,3787.6,3.6173]
[1754562092089,3.2078,3788.4,3788.3,0.52783]
[1754562092294,23.7948,3788.4,3788.3,4.14513]
[1754562092590,1.3111,3788.2,3788.1,2.89676]
[1754562092793,3.2078,3788.4,3788.3,3.6173]
[1754562092995,23.7918,3788.4,3788.3,3.6173]
[1754562093191,25.1029,3788.4,3788.3,3.6173]
[1754562093394,3.2078,3788.4,3788.3,3.6173]
[1754562093694,23.7918,3788.4,3788.3,3.6173]
[1754562094198,25.0999,3788.4,3788.3,2.3689]
[1754562095196,25.0999,3788.4,3787.6,1.31983]
[1754562095498,25.62773,3788.4,3788.2,0.52784]
[1754562095708,1.3111,3788.3,3788.2,2.89674]
[1754562095900,3.2078,3788.4,3788.3,3.6173]
[1754562096199,41.2268,3789.3,3788.4,0.8701]
[1754562096396,41.2268,3789.3,3789.2,3.6173]
[1754562096596,0.52773,3789.1,3788.8,0.52775]
[1754562096792,0.8794,3788.7,3788.6,2.7472]
[1754562096991,20.566,3788.8,3788.3,3.73563]
[1754562097195,0.5278,3788.6,3788.2,3.27504]
[1754562097396,20.565,3788.7,3788.4,0.52782]
[1754562097708,3.2078,3788.9,3788.8,4.14507]
[1754562097900,0.65658227,3789.2,3789.1,2.7472]
[1754562098093,42.1062,3789.3,3789.1,0.52772]
[1754562098293,61.7888,3789.3,3789.2,3.6173]
[1754562098498,62.6682,3789.3,3789.2,2.7472]
[1754562098705,44.8691,3789.3,3789.2,1.4988]
[1754562099001,62.6642,3789.3,3789.2,3.6173]
[1754562099202,44.8691,3789.3,3789.2,2.7472]
[1754562099391,65.4271,3789.3,3789.2,1.4988]
[1754562099597,41.2268,3789.3,3789.2,3.6173]
[1754562099900,23.7628,3789.3,3789.2,3.6173]
[1754562100101,20.554,3789.4,3789.1,3.6173]
[1754562100300,4.6596,3789.8,3789.6,1.2484]
[1754562100301,3.2078,3789.8,3789.6,1.2484]
[1754562100495,3.2078,3789.8,3789.7,3.6173]
[1754562100798,25.9503,3789.8,3789.7,2.7472]
[1754562101001,27.4021,3789.8,3789.7,2.7472]
[1754562101196,5.3983,3789.8,3789.7,2.7472]
[1754562101400,27.3991,3789.8,3789.7,2.7472]
[1754562101703,3.6423,3789.7,3789.6,0.52764]
[1754562101899,3.6423,3789.7,3789.6,3.27484]
[1754562102101,23.7548,3789.8,3789.7,3.6173]
[1754562102504,3.2078,3789.8,3789.7,3.6173]
[1754562103007,39.3261,3790.5,3790.2,0.52756]
[1754562103008,3.2078,3790.4,3790.2,0.52756]
[1754562103200,0.8794,3790.3,3790.2,0.52756]
[1754562103399,21.4184,3790.3,3790.2,3.27476]
[1754562103598,21.4174,3790.3,3790.2,3.27476]
[1754562103799,0.8794,3790.3,3790.2,3.27476]
[1754562104303,21.4134,3790.3,3790.2,4.14486]
[1754562104505,20.532,3790.3,3790.2,0.52756]
[1754562105206,20.532,3790.3,3790.2,4.14486]
[1754562105602,3.2078,3790.4,3790.2,4.14486]
[1754562105802,24.6142,3790.4,3790.2,1.39766]
[1754562106003,24.6142,3790.4,3790.3,2.7472]
[1754562106205,24.26236,3790.4,3790.1,0.52758]
[1754562106409,3.6423,3790.3,3790.2,0.52756]
[1754562106609,3.6423,3790.3,3790.2,3.27476]
[1754562107097,3.6423,3790.3,3790.2,2.7472]
[1754562107297,0.52758,3790.2,3789.9,0.52761]
[1754562107506,20.524,3790.1,3789.9,3.2748]
[1754562107707,0.8794,3790.0,3789.9,3.2748]
[1754562107902,3.2078,3790.4,3789.9,2.3689]
[1754562107903,3.73535,3790.4,3789.9,2.3689]
[1754562108104,24.1583,3790.3,3790.2,2.02637]
[1754562108504,3.6423,3790.3,3790.2,3.27477]
[1754562108698,24.1563,3790.3,3790.2,2.7472]
[1754562108901,24.1553,3790.3,3790.2,3.6173]